Workbook

Sheet Лист1
A1: Согласовано: | F1: Утверждаю:
A2: Мед.сестра ГБУЗ НСО ККДП №27 | D2: Заведующи МАДОУ д/с №10
A3: ________________ Ю.Н. Иванова | D3: _______________Г.Н. Лядова
D4: "_____"____________20____г.
B5: МЕНЮ-ПЕРЕЧЕНЬ на 04.12.2025
A7: Прием | B7: Блюдо | C7: Диетический | E7: Выход, гр. | G7: Калорийность
A8: пищи | C8: режим | E8: ясли | F8: сад | G8: ясли | H8: сад
A9: Завтрак | B9: Каша ячневая молочная с маслом | C9: Дети | E9: 180 | F9: 200 | G9: 169 | H9: 188
B10: Какао с молоком | E10: 150 | F10: 180 | G10: 89 | H10: 107
B11: Бутерброд с маслом | E11: 20\5 | F11: 25\7 | G11: 85 | H11: 109
B12: всего | E12: =E9+E10+25 -> 355 | F12: =F9+F10+32 -> 412 | G12: =G9+G10+G11 -> 343 | H12: =H9+H10+H11 -> 404
A13: Завтрак 2
B14: Всего | E14: =E13 -> 0 | F14: =F13 -> 0 | G14: 0 | H14: 0
A15: Обед | B15: Суп картофельный с горохом и гренками на куринном бульоне | E15: 180/20 | F15: 200/40 | G15: 144 | H15: 167
B16: Суфле куринное | E16: 60 | F16: 80 | G16: 130 | H16: 173
B17: Соус сметанный | E17: 25 | F17: 30 | G17: 18 | H17: 22
B18: Кисель из с/м смородины | E18: 150 | F18: 180 | G18: 94 | H18: 113
B19: Хлеб ржаной | E19: 40 | F19: 50 | G19: 69 | H19: 87
B20: Хлеб пшеничный | E20: 0 | F20: 0 | G20: 0 | H20: 0
B21: всего | E21: =200+E16+E17+E18+E19+E20 -> 475 | F21: =240+F16+F17+F18+F19+F20 -> 580 | G21: =G15+G16+G17+G18+G19+G20 -> 455 | H21: 562
A22: Полдник | B22: Кефир с сахаром | E22: 200/5 | F22: 200/5 | G22: 115 | H22: 115
B23: Булочка творожная | E23: 55 | F23: 60 | G23: 260 | H23: 284
B24: всего | E24: =E23+205 -> 260 | F24: =F23+205 -> 265 | G24: =G22+G23 -> 375 | H24: 399
A25: Ужин | B25: Салат из кукурузы | E25: 40 | F25: 60 | G25: 33 | H25: 50
B26: Омлет натуральный с маслом | E26: 85 | F26: 105 | G26: 157 | H26: 194
B27: Чай с сахаром | E27: 180 | F27: 200 | G27: 40 | H27: 44
B28: Хлеб пшеничный | E28: 20 | F28: 25 | G28: 48 | H28: 60
B29: всего | E29: =E25+E26+E27+E28 -> 325 | F29: =F25+F26+F27+F28 -> 390 | G29: =G25+G26+G27+G28 -> 278 | H29: =H25+H26+H27+H28 -> 348
A30: Всего за день кКалл | G30: =G12+G14+G21+G24+G29 -> 1451 | H30: =H12+H14+H21+H24+H29 -> 1713
C32: Составил Сидорова О.А.________________
